bitfinex/quotes_BTCUSD_20250803
["timestamp","ask_amount","ask_price","bid_price","bid_amount"]
[1754221155457,4.79879781,114190.0,114180.0,0.07805]
[1754221156136,4.79879781,114190.0,114180.0,0.08002]
[1754221156773,4.84610662,114190.0,114180.0,0.08002]
[1754221158066,4.84810662,114190.0,114180.0,0.08002]
[1754221158275,4.84810662,114190.0,114180.0,0.08102]
[1754221159890,4.86181956,114190.0,114180.0,0.08102]
[1754221163377,4.87003512,114190.0,114180.0,0.08102]
[1754221164245,4.6213766,114190.0,114180.0,0.08102]
[1754221165187,4.60766366,114190.0,114180.0,0.08102]
[1754221169694,4.60766526,114190.0,114180.0,0.08102]
[1754221172349,4.60766526,114190.0,114180.0,0.07905]
[1754221172783,4.60566526,114190.0,114180.0,0.07905]
[1754221173215,4.60666526,114190.0,114180.0,0.07905]
[1754221173426,4.60666526,114190.0,114180.0,0.07805]
[1754221173883,4.60666526,114190.0,114180.0,0.07905]
[1754221174090,4.62242778,114190.0,114180.0,0.07905]
[1754221177846,4.62242778,114190.0,114180.0,0.08109]
[1754221182258,4.53774214,114190.0,114180.0,0.08109]
[1754221183718,4.94436214,114190.0,114180.0,0.001]
[1754221184173,4.94436953,114190.0,114180.0,0.00401]
[1754221184391,4.87774953,114190.0,114180.0,0.07768]
[1754221186812,4.87774953,114190.0,114180.0,0.001]
[1754221186813,4.94454953,114190.0,114180.0,0.001]
[1754221187032,4.96100186,114190.0,114180.0,0.001]
[1754221187265,4.98734586,114190.0,114180.0,0.001]
[1754221187921,4.701828,114180.0,114170.0,0.16192531]
[1754221188133,4.72551412,114180.0,114170.0,0.16192531]
[1754221188352,4.86059412,114180.0,114170.0,0.16396531]
[1754221188786,4.86881921,114180.0,114170.0,0.16396531]
[1754221189199,4.86881921,114180.0,114170.0,0.1644415]
[1754221189350,4.86981921,114180.0,114170.0,0.1644415]
[1754221190014,4.86981921,114180.0,114170.0,0.1654415]
[1754221192188,4.87771007,114180.0,114170.0,0.1634015]
[1754221194354,4.89664914,114180.0,114170.0,0.1634015]
[1754221197326,4.92031945,114180.0,114170.0,0.1654415]
[1754221199349,4.88874247,114180.0,114170.0,0.1654415]
[1754221200402,4.92031945,114180.0,114170.0,0.1654415]
[1754221201235,4.91508547,114180.0,114170.0,0.1654415]
[1754221204685,4.9287996,114180.0,114170.0,0.1654415]
[1754221205182,4.91508547,114180.0,114170.0,0.1654415]
[1754221212100,4.91508128,114180.0,114170.0,0.1654415]
[1754221214368,4.94665826,114180.0,114170.0,0.1654415]
[1754221214579,4.98857795,114180.0,114170.0,0.0867215]
[1754221214806,5.00502441,114180.0,114170.0,0.0867215]
[1754221215056,5.00502441,114180.0,114170.0,0.0867615]
[1754221215276,5.08486298,114180.0,114170.0,0.0867615]
[1754221215494,5.10059481,114180.0,114170.0,0.0867615]
[1754221215722,5.09959481,114180.0,114170.0,0.0857615]
[1754221216186,5.05319159,114180.0,114170.0,0.0867615]
[1754221216861,5.03745749,114180.0,114170.0,0.0867615]
[1754221217865,5.00902214,114180.0,114170.0,0.0867615]
[1754221218291,5.0227376,114180.0,114170.0,0.0867615]
[1754221227321,5.00902214,114180.0,114170.0,0.0867615]
[1754221227774,5.00894214,114180.0,114170.0,0.0867615]
[1754221229145,5.00893575,114180.0,114170.0,0.0867615]
[1754221229827,4.80834575,114180.0,114170.0,0.1670315]
[1754221230046,4.93542746,114180.0,114170.0,0.1670315]
[1754221230267,4.94914253,114180.0,114170.0,0.1670315]
[1754221234808,4.94914339,114180.0,114170.0,0.1670315]
[1754221235307,4.93542832,114180.0,114170.0,0.1670315]
[1754221235549,4.80042832,114180.0,114170.0,0.1670315]
[1754221235769,4.93542832,114180.0,114170.0,0.1670315]
[1754221236438,4.5717719,114180.0,114170.0,0.1670315]
[1754221238386,4.9117719,114180.0,114170.0,0.1670315]
[1754221239673,4.92548695,114180.0,114170.0,0.1670315]
[1754221241175,4.94914337,114180.0,114170.0,0.1670315]
[1754221242272,4.94914337,114180.0,114170.0,0.1650315]
[1754221243188,4.94914337,114180.0,114170.0,0.1670315]
[1754221243410,4.94914178,114180.0,114170.0,0.1670315]
[1754221246424,4.95706007,114180.0,114170.0,0.1670315]
[1754221246834,4.94917281,114180.0,114170.0,0.1670315]
[1754221249177,4.94917281,114180.0,114170.0,0.1650315]
[1754221249842,4.98074752,114180.0,114170.0,0.0899915]
[1754221250056,5.04356752,114180.0,114170.0,0.0867615]
[1754221251419,4.99827776,114180.0,114170.0,0.0867615]
[1754221251988,5.11555067,114180.0,114170.0,0.0867615]
[1754221252208,5.03460037,114180.0,114170.0,0.0867615]
[1754221253107,5.00616502,114180.0,114170.0,0.0867615]
[1754221254143,5.01988781,114180.0,114170.0,0.0867615]
[1754221255448,5.00617234,114180.0,114170.0,0.0867615]
[1754221258600,5.01988781,114180.0,114170.0,0.0867615]
[1754221260576,5.01989637,114180.0,114170.0,0.0867615]
[1754221262366,5.10873393,114180.0,114170.0,0.0867615]
[1754221263908,5.01989637,114180.0,114170.0,0.0867615]
[1754221265397,5.01989525,114180.0,114170.0,0.0867615]
[1754221267402,5.0483306,114180.0,114170.0,0.0867615]
[1754221268312,5.04833051,114180.0,114170.0,0.0867615]
[1754221268947,5.01989442,114180.0,114170.0,0.0867615]
[1754221269163,5.09726494,114180.0,114170.0,0.0867615]
[1754221270891,5.01989442,114180.0,114170.0,0.0867615]
[1754221272385,5.01989294,114180.0,114170.0,0.0867615]
[1754221274002,5.00617747,114180.0,114170.0,0.0867615]
[1754221274203,5.00617733,114180.0,114170.0,0.0867615]
[1754221277209,5.01989307,114180.0,114170.0,0.0867615]
[1754221278388,5.00617733,114180.0,114170.0,0.0867615]
[1754221279146,5.09501489,114180.0,114170.0,0.0867615]
[1754221281248,5.10873063,114180.0,114170.0,0.0897215]
[1754221282333,5.04591063,114180.0,114170.0,0.1658115]
[1754221282564,4.95707307,114180.0,114170.0,0.1658115]
[1754221286447,4.94335733,114180.0,114170.0,0.1658115]
[1754221287160,4.94319733,114180.0,114170.0,0.1658115]
[1754221288716,4.94320574,114180.0,114170.0,0.1658115]
[1754221288927,4.94320574,114180.0,114170.0,0.1677715]
[1754221289224,4.94316574,114180.0,114170.0,0.1677715]
[1754221289471,4.95688139,114180.0,114170.0,0.1677715]
[1754221291462,4.9568811,114180.0,114170.0,0.1677715]
[1754221293718,4.8220811,114180.0,114170.0,0.1677715]
[1754221293931,4.9568811,114180.0,114170.0,0.1677715]
[1754221294149,4.95688096,114180.0,114170.0,0.1677715]
[1754221295722,4.94316531,114180.0,114170.0,0.1677715]
[1754221297265,4.94316498,114180.0,114170.0,0.1677715]
[1754221298589,4.96795326,114180.0,114170.0,0.1658115]
[1754221298796,5.05578861,114180.0,114170.0,0.0867615]
[1754221299009,5.02735326,114180.0,114170.0,0.0867615]
[1754221299631,5.02735326,114180.0,114170.0,0.0896915]
[1754221299853,5.02735326,114180.0,114170.0,0.0867615]
[1754221300473,4.78990342,114180.0,114170.0,0.0867615]
[1754221302259,4.65510342,114180.0,114170.0,0.0867615]
[1754221302511,4.81829877,114180.0,114170.0,0.0867615]
[1754221302942,4.850887,114180.0,114170.0,0.0867615]
[1754221303579,4.82618099,114180.0,114170.0,0.0867615]
[1754221304002,4.91501855,114180.0,114170.0,0.0867615]
[1754221305479,4.93246757,114180.0,114170.0,0.0867615]
[1754221305699,4.91875191,114180.0,114170.0,0.0867615]
[1754221306398,4.82991435,114180.0,114170.0,0.0867615]
[1754221308424,4.69515435,114180.0,114170.0,0.0867615]
[1754221308640,4.81571574,114180.0,114170.0,0.0867615]
[1754221308858,4.81571574,114180.0,114170.0,0.0896915]
[1754221309524,4.75631574,114180.0,114170.0,0.1645515]
[1754221309966,4.73890672,114180.0,114170.0,0.1665115]
[1754221310185,4.70733201,114180.0,114170.0,0.1665115]
[1754221310417,4.73890672,114180.0,114170.0,0.1665115]
[1754221311531,4.73888602,114180.0,114170.0,0.1665115]
[1754221315249,4.72516928,114180.0,114170.0,0.1665115]
[1754221318338,4.73888589,114180.0,114170.0,0.1665115]
[1754221319080,4.82772345,114180.0,114170.0,0.1665115]
[1754221319558,4.73888589,114180.0,114170.0,0.1665115]
[1754221324493,4.34070364,114180.0,114170.0,0.1665115]
[1754221324707,4.23173364,114180.0,114170.0,0.1665115]
[1754221325067,4.36693316,114180.0,114170.0,0.1665115]
[1754221325544,4.35321655,114180.0,114170.0,0.1665115]
[1754221325982,4.19434202,114180.0,114170.0,0.1665115]
[1754221326203,4.30331202,114180.0,114170.0,0.1665115]
[1754221326648,4.64331202,114180.0,114170.0,0.1665115]
[1754221328718,4.62687235,114180.0,114170.0,0.1665115]
[1754221329084,4.62687235,114180.0,114170.0,0.3017915]
[1754221329708,4.50526675,114180.0,114170.0,0.3017915]
[1754221330591,4.4970474,114180.0,114170.0,0.3017915]
[1754221346817,0.3537144,114180.0,114170.0,0.3017915]
[1754221347034,4.3240724,114180.0,114170.0,0.3017915]
[1754221355395,4.33229123,114180.0,114170.0,0.3017915]
[1754221356592,3.99229123,114180.0,114170.0,0.3017915]
[1754221356790,3.99229408,114180.0,114170.0,0.3017915]
[1754221357290,4.01124041,114180.0,114170.0,0.3017915]
[1754221358166,4.01124041,114180.0,114170.0,0.2220415]
[1754221358573,4.35124041,114180.0,114170.0,0.2220415]
[1754221359569,4.35124482,114180.0,114170.0,0.2220415]
[1754221362500,4.35124542,114180.0,114170.0,0.2220415]
[1754221371999,4.33753102,114180.0,114170.0,0.2220415]
[1754221372627,4.33753102,114180.0,114170.0,0.2210415]
[1754221373079,4.33853102,114180.0,114170.0,0.2230415]
[1754221373290,4.33953102,114180.0,114170.0,0.2260415]
[1754221374274,4.35324477,114180.0,114170.0,0.2260415]
[1754221375580,4.33953102,114180.0,114170.0,0.2260415]
[1754221376971,4.33953208,114180.0,114170.0,0.2260415]
[1754221378763,4.35324582,114180.0,114170.0,0.2260415]
[1754221382958,0.01571374,114180.0,114170.0,0.2260415]
[1754221385888,0.03465353,114180.0,114170.0,0.2260415]
[1754221386106,0.02093979,114180.0,114170.0,0.2260415]
[1754221386596,0.05250244,114180.0,114170.0,0.2260415]
[1754221396822,0.36093979,114180.0,114170.0,0.2260415]
[1754221400862,0.07685922,114190.0,114170.0,0.31467434]
[1754221400863,0.06103657,114190.0,114170.0,0.31467434]
[1754221401076,0.03154843,114180.0,114170.0,0.33212336]
[1754221401285,0.03154843,114180.0,114170.0,0.19684336]
[1754221401475,0.03154843,114180.0,114170.0,0.33156336]
[1754221401942,0.03154843,114180.0,114170.0,0.32956336]
[1754221402159,0.03154843,114180.0,114170.0,0.33156336]
[1754221403601,0.03154843,114180.0,114170.0,0.32956336]
[1754221403979,0.03254843,114180.0,114170.0,0.33256336]
[1754221405675,0.03153874,114190.0,114170.0,0.33256336]
[1754221406669,0.03153874,114190.0,114170.0,0.32956336]
[1754221407085,0.03153874,114190.0,114170.0,0.33156336]
[1754221409533,0.03153874,114190.0,114170.0,0.32856336]
[1754221409963,0.03253874,114190.0,114170.0,0.33156336]
[1754221410911,0.001,114190.0,114170.0,0.33156336]
[1754221412462,0.001,114190.0,114180.0,0.13464]
[1754221412874,0.01993178,114190.0,114180.0,0.13464]
[1754221413689,0.01893178,114190.0,114180.0,0.13664]
[1754221413899,0.01993178,114190.0,114180.0,0.13964]
[1754221417475,0.01993178,114190.0,114180.0,0.005]
[1754221417670,0.01993178,114190.0,114180.0,0.13964]
[1754221425806,0.06728116,114190.0,114180.0,0.13964]
[1754221431860,0.04737587,114200.0,114180.0,0.13964]
[1754221432077,3.970358,114190.0,114180.0,0.13964]
[1754221432923,3.970358,114190.0,114180.0,0.13664]
[1754221433107,3.970358,114190.0,114180.0,0.13964]
[1754221433316,3.970358,114190.0,114180.0,0.13764]
[1754221433523,3.970358,114190.0,114180.0,0.13464]
[1754221433958,0.34,114190.0,114180.0,0.13464]
[1754221434805,0.34,114190.0,114180.0,0.13564]
[1754221435271,0.34,114190.0,114180.0,0.13464]
[1754221435465,0.34,114190.0,114180.0,0.13664]
[1754221435741,0.37158386,114190.0,114180.0,0.13664]
[1754221437161,0.37258386,114190.0,114180.0,0.14164]
[1754221441868,0.341,114190.0,114180.0,0.14164]
[1754221443868,0.35994879,114190.0,114180.0,0.14164]
[1754221444288,0.35994879,114190.0,114180.0,0.007]
[1754221444497,0.35994879,114190.0,114180.0,0.14156]
[1754221448720,0.35994879,114190.0,114180.0,0.13956]
[1754221448935,0.36094879,114190.0,114180.0,0.14256]
[1754221449398,0.35994879,114190.0,114180.0,0.13756]
[1754221449613,0.35994879,114190.0,114180.0,0.1376]
[1754221451136,0.36094879,114190.0,114180.0,0.1416]
[1754221451961,0.4083252,114190.0,114180.0,0.14156]
[1754221453483,0.42203745,114190.0,114180.0,0.14156]
[1754221455456,0.4083252,114190.0,114180.0,0.14156]
[1754221458906,0.42203731,114190.0,114180.0,0.14156]
[1754221465093,0.4083252,114190.0,114180.0,0.14156]
[1754221468560,0.41654667,114190.0,114180.0,0.14156]
[1754221484291,5.46654667,114190.0,114180.0,0.14156]
[1754221486350,5.46554667,114190.0,114180.0,0.13756]
[1754221486555,5.46754667,114190.0,114180.0,0.13856]
[1754221486968,5.46654667,114190.0,114180.0,0.13556]
[1754221489446,5.11074854,114190.0,114180.0,0.13556]
[1754221493812,5.45075158,114190.0,114180.0,0.13556]
[1754221496644,5.45075252,114190.0,114180.0,0.13556]
[1754221497506,5.43180373,114190.0,114180.0,0.13556]
[1754221497727,5.45075609,114190.0,114180.0,0.13556]
[1754221499289,5.46655422,114190.0,114180.0,0.13556]
[1754221499512,5.46655575,114190.0,114180.0,0.13556]
[1754221502577,5.49289575,114190.0,114180.0,0.13556]
[1754221508713,5.49289555,114190.0,114180.0,0.13556]
[1754221509125,5.29337716,114190.0,114180.0,0.13556]
[1754221513399,5.29337733,114190.0,114180.0,0.13556]
[1754221519064,5.30916272,114190.0,114180.0,0.13556]
[1754221524727,0.41655572,114190.0,114180.0,0.13556]
[1754221526096,0.07655572,114190.0,114180.0,0.13774952]
[1754221526269,0.06076472,114190.0,114180.0,0.13774952]
[1754221527503,0.05253777,114190.0,114180.0,0.13774952]
[1754221529163,0.05253777,114190.0,114180.0,0.22638236]
[1754221529385,0.05253777,114190.0,114180.0,0.22419284]
[1754221530293,0.02095236,114190.0,114180.0,0.22419284]
[1754221531448,0.04461836,114190.0,114180.0,0.22419284]
[1754221539336,0.04461836,114190.0,114180.0,0.08967284]
[1754221539553,0.04461836,114190.0,114180.0,0.22387284]
[1754221546779,0.02095236,114190.0,114180.0,0.22387284]
[1754221548111,0.04461836,114190.0,114180.0,0.22387284]
[1754221559487,0.23761476,114200.0,114180.0,0.22387284]
[1754221559695,0.24583806,114200.0,114190.0,0.00218933]
[1754221560758,0.02368316,114200.0,114190.0,0.00218933]
[1754221560975,4.866267,114210.0,114190.0,0.09082217]
[1754221561228,0.00822294,114210.0,114200.0,0.22275284]
[1754221561457,0.00822294,114210.0,114200.0,0.21975284]
[1754221561730,0.04221159,114220.0,114200.0,0.21975284]
[1754221561943,0.02409642,114220.0,114200.0,0.21975284]
[1754221562148,0.02409642,114220.0,114200.0,0.21675284]
[1754221563028,0.02409642,114220.0,114200.0,0.21475284]
[1754221563659,0.02409642,114220.0,114200.0,0.21675284]
[1754221564320,0.001,114210.0,114200.0,0.22475284]
[1754221564537,0.01587759,114220.0,114200.0,0.21675284]
[1754221564757,0.02509018,114220.0,114200.0,0.22275284]
[1754221564992,0.00921259,114220.0,114200.0,0.22275284]
[1754221565221,0.39791441,114240.0,114200.0,0.22275284]
[1754221565222,4.866267,114230.0,114200.0,0.22275284]
[1754221566133,4.866267,114230.0,114200.0,0.21475284]
[1754221566606,4.866267,114230.0,114200.0,0.21775284]
[1754221567702,4.866267,114230.0,114200.0,0.21475284]
[1754221568116,4.866267,114220.0,114200.0,0.21475284]
[1754221568350,4.866267,114220.0,114200.0,0.21975284]
[1754221569021,4.866267,114220.0,114200.0,0.21575284]
[1754221569232,0.34,114220.0,114200.0,0.21575284]
[1754221569682,0.341,114220.0,114200.0,0.22275284]
[1754221570140,0.001,114220.0,114200.0,0.22475284]
[1754221571465,0.01990763,114220.0,114200.0,0.22475284]
[1754221572973,0.001,114220.0,114200.0,0.22479284]
[1754221575162,0.01990763,114220.0,114200.0,0.22479284]
[1754221577376,0.001,114220.0,114200.0,0.22479284]
[1754221579542,0.001,114220.0,114200.0,0.09867284]
[1754221579752,0.001,114220.0,114210.0,0.13408]
[1754221581317,0.34,114220.0,114210.0,0.13408]
[1754221581534,0.35990763,114220.0,114210.0,0.14108]
[1754221584378,0.36811805,114220.0,114210.0,0.14308]
[1754221585027,0.35990763,114220.0,114210.0,0.14308]
[1754221585475,0.35990763,114220.0,114210.0,0.14312]
[1754221586372,0.36812106,114220.0,114210.0,0.14312]
[1754221589919,0.36812106,114220.0,114210.0,0.14530895]
[1754221592834,0.35990763,114220.0,114210.0,0.23394179]
[1754221593103,0.001,114220.0,114210.0,0.23175284]
[1754221610793,0.001,114220.0,114210.0,0.24920186]
[1754221611630,0.001,114220.0,114210.0,0.11512186]
[1754221611884,0.001,114220.0,114210.0,0.25131081]
[1754221612097,0.001,114220.0,114210.0,0.11512186]
[1754221612314,5.05,114250.0,114210.0,0.25131081]
[1754221612535,0.02415442,114250.0,114210.0,0.24912186]
[1754221612734,0.00825105,114250.0,114220.0,0.00218875]
[1754221612938,0.00825105,114250.0,114230.0,0.134]
[1754221613360,0.02715357,114250.0,114230.0,0.134]
[1754221613577,0.00825105,114250.0,114230.0,0.134]
[1754221614446,0.02715552,114250.0,114240.0,0.134]
[1754221614645,0.02815552,114250.0,114240.0,0.134]
[1754221615120,0.00825105,114250.0,114240.0,0.134]
[1754221615337,0.02715742,114250.0,114240.0,0.134]
[1754221615554,0.02815742,114250.0,114240.0,0.134]
[1754221615782,0.02815742,114250.0,114240.0,0.137]
[1754221615988,0.00825105,114250.0,114240.0,0.137]
[1754221616204,0.00925105,114250.0,114240.0,0.003]
[1754221616453,0.04259315,114250.0,114240.0,0.137]
[1754221616674,0.00916729,114250.0,114240.0,0.003]
[1754221617367,0.02807831,114250.0,114240.0,0.003]
[1754221618231,0.00916729,114250.0,114240.0,0.003]
[1754221618694,0.02808198,114250.0,114240.0,0.003]
[1754221620892,0.04213412,114250.0,114240.0,0.003]
[1754221627842,0.04213412,114250.0,114240.0,0.13696]
[1754221631543,0.02321943,114250.0,114240.0,0.13696]
[1754221631770,0.02321943,114250.0,114240.0,0.22559284]
[1754221631982,0.01509971,114250.0,114240.0,0.22559284]
[1754221632193,0.01409971,114250.0,114240.0,0.24304186]
[1754221632433,0.01409971,114250.0,114240.0,0.24004186]
[1754221632850,0.01509971,114250.0,114240.0,0.24904186]
[1754221633272,0.01509971,114250.0,114240.0,0.25004186]
[1754221634484,0.01509971,114250.0,114240.0,0.24904186]
[1754221634687,0.01509971,114250.0,114240.0,0.25204186]
[1754221634918,0.00104757,114250.0,114240.0,0.25204186]
[1754221638871,0.00104757,114250.0,114240.0,0.27836086]
[1754221643445,0.00104757,114250.0,114240.0,0.27840086]
[1754221649552,0.00104757,114250.0,114240.0,0.14444086]
[1754221649738,0.00104757,114250.0,114240.0,0.27836086]
[1754221659480,0.00104757,114250.0,114240.0,0.29242453]
[1754221661753,0.01891983,114260.0,114250.0,0.01744902]
[1754221662065,0.01891983,114260.0,114250.0,0.10827004]
[1754221662601,0.01891983,114260.0,114250.0,0.13458604]
[1754221662932,0.01991983,114260.0,114250.0,0.14058604]
[1754221663355,0.04264902,114340.0,114250.0,0.14258604]
[1754221663567,0.00014273,114290.0,114260.0,0.22255284]
[1754221663783,0.00835541,114290.0,114270.0,0.0021878]
[1754221663982,0.00835541,114290.0,114280.0,0.13392]
[1754221665080,0.02247933,114290.0,114280.0,0.13392]
[1754221666465,0.02347933,114290.0,114280.0,0.13392]
[1754221669226,0.02347933,114290.0,114280.0,0.13592]
[1754221673496,0.07085574,114290.0,114280.0,0.13592]
[1754221675557,0.08976074,114290.0,114280.0,0.13592]
[1754221679479,0.04238433,114290.0,114280.0,0.13592]
[1754221686220,0.04239308,114290.0,114280.0,0.13592]
[1754221689451,0.0341804,114290.0,114280.0,0.13592]
[1754221689774,0.04239261,114290.0,114280.0,0.13592]
[1754221693447,0.07395555,114290.0,114280.0,0.13592]
[1754221695323,0.07395555,114290.0,114280.0,0.002]
[1754221695553,0.07395555,114290.0,114280.0,0.13584]
[1754221695908,0.07395555,114290.0,114280.0,0.002]
[1754221696107,0.07395555,114290.0,114280.0,0.13584]
[1754221698315,0.07395555,114290.0,114280.0,0.13588]
[1754221710045,0.07396343,114290.0,114280.0,0.13588]
[1754221712437,5.05,114290.0,114280.0,0.13588]
[1754221714692,5.07605345,114290.0,114280.0,0.13588]
[1754221714907,0.02605345,114290.0,114280.0,0.13588]
[1754221715106,0.2540467,114300.0,114280.0,0.13588]
[1754221715312,5.05,114290.0,114280.0,0.13588]
[1754221718226,0.001,114290.0,114280.0,0.13588]
[1754221720209,0.02714417,114290.0,114280.0,0.13588]
[1754221720457,0.001,114290.0,114280.0,0.13588]
[1754221722421,0.04837641,114290.0,114280.0,0.13588]
[1754221724435,0.07553572,114290.0,114280.0,0.13588]
[1754221725058,0.10088678,114290.0,114280.0,0.13588]
[1754221725559,0.10088678,114290.0,114280.0,0.13584]
[1754221726853,0.05351037,114290.0,114280.0,0.13584]
[1754221741458,5.07367384,114290.0,114280.0,0.13584]
[1754221741661,0.02367384,114290.0,114280.0,0.13584]
[1754221744415,0.39956079,114290.0,114280.0,0.13584]
[1754221744619,0.36367384,114290.0,114280.0,0.13584]
[1754221748981,0.39851367,114290.0,114280.0,0.00204]
[1754221749196,0.39851367,114290.0,114280.0,0.13576]
[1754221751096,5.08483983,114290.0,114280.0,0.00204]
[1754221751303,5.16010887,114290.0,114280.0,0.00204]
[1754221751504,5.17592015,114290.0,114280.0,0.00204]
[1754221751928,5.20223815,114290.0,114280.0,0.00204]
[1754221752202,5.17497578,114290.0,114280.0,0.00204]
[1754221752410,5.15853424,114290.0,114280.0,0.00204]
[1754221753624,5.16674744,114290.0,114280.0,0.00204]
[1754221758297,5.16674454,114290.0,114280.0,0.00204]
[1754221758730,5.50305096,114290.0,114280.0,0.00204]
[1754221761052,5.49484066,114290.0,114280.0,0.00204]
[1754221761260,5.50304756,114290.0,114280.0,0.00204]
[1754221764048,5.50304432,114290.0,114280.0,0.00204]
[1754221766344,5.50304432,114290.0,114240.0,0.20447198]
[1754221766345,0.34,114280.0,114240.0,0.20447198]
[1754221766543,0.36362214,114260.0,114250.0,0.00014273]
[1754221766744,0.38251985,114260.0,114250.0,0.00014273]
[1754221766973,0.40884385,114260.0,114250.0,0.00014273]
[1754221770245,0.40884385,114260.0,114250.0,0.50314273]
[1754221770564,0.40884385,114260.0,114250.0,0.50014273]
[1754221771097,0.40984385,114260.0,114250.0,0.50614273]
[1754221771755,0.40984385,114260.0,114250.0,0.52222409]
[1754221771975,0.40984385,114260.0,114250.0,0.50614273]
[1754221772432,0.04351985,114260.0,114250.0,0.50614273]
[1754221772667,0.04251985,114260.0,114250.0,0.50214273]
[1754221773092,0.04251985,114260.0,114250.0,0.50614273]
[1754221778790,0.02361094,114270.0,114250.0,0.50614273]
[1754221779067,0.34,114260.0,114250.0,0.50614273]
[1754221779296,0.34,114260.0,114250.0,0.63982273]
[1754221779759,0.34,114260.0,114250.0,0.63782273]
[1754221780009,0.34,114260.0,114250.0,0.63382273]
[1754221780268,0.34,114260.0,114250.0,0.63682273]
[1754221780491,0.34,114260.0,114250.0,0.63482273]
[1754221780698,0.34,114260.0,114250.0,0.63382273]
[1754221780906,0.34,114260.0,114250.0,0.63782273]
[1754221782400,0.34,114260.0,114250.0,0.63982273]
[1754221783978,0.35370329,114260.0,114250.0,0.63982273]
[1754221784190,0.34857841,114260.0,114250.0,0.63982273]
[1754221786461,0.3567886,114260.0,114250.0,0.63982273]
[1754221786989,0.35678878,114260.0,114250.0,0.63982273]
[1754221790863,0.3757156,114260.0,114250.0,0.63982273]
[1754221798661,0.37572448,114260.0,114250.0,0.63982273]
[1754221800357,0.3757247,114260.0,114250.0,0.63982273]
[1754221811371,0.3757247,114260.0,114250.0,0.50614273]
[1754221811590,0.3757247,114260.0,114250.0,0.63974273]
[1754221811803,5.4572925,114260.0,114250.0,0.63974273]
[1754221813078,5.47306653,114260.0,114250.0,0.63974273]
[1754221814799,5.47306468,114260.0,114250.0,0.63974273]
[1754221816382,5.50461568,114260.0,114250.0,0.63974273]
[1754221817017,5.47306468,114260.0,114250.0,0.63974273]
[1754221818339,5.47306468,114260.0,114250.0,0.65582409]
[1754221818554,5.50461233,114260.0,114250.0,0.63974273]
[1754221819193,0.4072705,114260.0,114250.0,0.63974273]
[1754221826025,0.04084773,114260.0,114250.0,0.63974273]
[1754221829786,0.04084544,114260.0,114250.0,0.63974273]
[1754221832588,0.04084563,114260.0,114250.0,0.63974273]
[1754221836293,0.07239328,114260.0,114250.0,0.63974273]
[1754221838106,0.07239328,114260.0,114250.0,0.50614273]
[1754221838326,0.07239328,114260.0,114250.0,0.63970273]
[1754221838753,0.2743388,114270.0,114250.0,0.63970273]
[1754221838971,5.05,114260.0,114250.0,0.50614273]
[1754221839188,4.89444661,114260.0,114250.0,0.63970273]
[1754221839403,0.02366305,114260.0,114250.0,0.63970273]
[1754221839609,0.02366305,114260.0,114250.0,0.63370273]
[1754221840104,0.02366305,114260.0,114250.0,0.63470273]
[1754221840318,0.02366305,114260.0,114250.0,0.63670273]
[1754221840529,0.02366305,114260.0,114250.0,0.63570273]
[1754221840742,0.02366305,114260.0,114250.0,0.63770273]
[1754221841410,0.02366305,114260.0,114250.0,0.63570273]
[1754221841595,0.02366305,114260.0,114250.0,0.63970273]
[1754221842272,4.870784,114260.0,114250.0,0.63970273]
[1754221848747,4.91812583,114260.0,114250.0,0.63970273]
[1754221849098,0.04734183,114260.0,114250.0,0.63970273]
[1754221849268,4.870784,114260.0,114250.0,0.63970273]
[1754221850071,4.870784,114260.0,114250.0,0.50614273]
[1754221850272,4.870784,114260.0,114250.0,0.63970273]
[1754221850806,4.89794128,114260.0,114250.0,0.63970273]
[1754221851025,0.02715728,114260.0,114250.0,0.63970273]
[1754221854624,0.02715728,114260.0,114250.0,0.50614273]
[1754221854908,0.02715728,114260.0,114250.0,0.63970273]
[1754221855736,0.02715735,114260.0,114250.0,0.63970273]
[1754221861098,0.01893778,114260.0,114250.0,0.63970273]
[1754221861307,0.02715742,114260.0,114250.0,0.63970273]
[1754221861527,0.02715751,114260.0,114250.0,0.63970273]
[1754221862373,0.02715783,114260.0,114250.0,0.63970273]
[1754221862835,4.89794183,114260.0,114250.0,0.50614273]
[1754221863031,4.89794183,114260.0,114250.0,0.45877897]
[1754221863032,5.2652042,114260.0,114250.0,0.45877897]
[1754221863254,5.28164516,114260.0,114250.0,0.59229897]
[1754221863479,5.51388876,114260.0,114250.0,0.45877897]
[1754221863703,5.53032613,114260.0,114250.0,0.45877897]
[1754221863913,5.50306376,114260.0,114250.0,0.45877897]
[1754221864136,5.4142262,114260.0,114250.0,0.45877897]
[1754221864572,5.41421032,114260.0,114250.0,0.45677897]
[1754221864792,5.47737487,114260.0,114250.0,0.45677897]
[1754221865010,5.47737487,114260.0,114250.0,0.45277897]
[1754221865228,5.47737487,114260.0,114250.0,0.45477897]
[1754221865447,5.41421032,114260.0,114250.0,0.45477897]
[1754221865650,5.41421032,114260.0,114250.0,0.45577897]
[1754221866326,5.44894587,114260.0,114250.0,0.45577897]
[1754221867635,5.41421032,114260.0,114250.0,0.45577897]
[1754221867867,5.41421032,114260.0,114250.0,0.45581897]
[1754221870891,5.42791615,114260.0,114250.0,0.45581897]
[1754221872923,5.4910807,114260.0,114250.0,0.45581897]
[1754221873576,5.4911207,114260.0,114250.0,0.45581897]
[1754221873789,5.42795615,114260.0,114250.0,0.45581897]
[1754221874865,5.42789182,114260.0,114250.0,0.45581897]
[1754221875302,5.4278918,114260.0,114250.0,0.45581897]
[1754221875519,5.41149664,114260.0,114250.0,0.45581897]
[1754221876719,5.27793664,114260.0,114250.0,0.45581897]
[1754221876962,5.41153664,114260.0,114250.0,0.45581897]
[1754221877190,5.05791081,114260.0,114250.0,0.45581897]
[1754221877400,4.94511631,114260.0,114250.0,0.45581897]
[1754221877609,5.28511631,114260.0,114250.0,0.45581897]
[1754221879084,5.29882055,114260.0,114250.0,0.45581897]
[1754221880163,5.28308609,114260.0,114250.0,0.45581897]
[1754221881269,5.33029859,114260.0,114250.0,0.45581897]
[1754221881485,0.42803655,114260.0,114250.0,0.45581897]
[1754221882134,0.41230584,114260.0,114250.0,0.45581897]
[1754221882348,0.42803655,114260.0,114250.0,0.45581897]
[1754221882559,0.45952036,114260.0,114250.0,0.45581897]
[1754221882787,0.41230786,114260.0,114250.0,0.45581897]
[1754221883015,0.45952036,114260.0,114250.0,0.45581897]
[1754221883381,0.42803655,114260.0,114250.0,0.45581897]
[1754221883573,0.4123098,114260.0,114250.0,0.45581897]
[1754221884481,0.01370424,114260.0,114250.0,0.45581897]
[1754221887201,0.37732247,114260.0,114250.0,0.45581897]
[1754221890552,0.03732247,114260.0,114250.0,0.45581897]
[1754221893195,0.03732543,114260.0,114250.0,0.45581897]